Cogmind - Beta 11 @@@ ROGUE MODE // 2022.04.18 @ 15:53:05 Player: Jezoensis Result: Self-destructed Performance ------------- Evolutions (3) 1500 Regions Visited (9) 1800 Robots Destroyed (85) 425 Value Destroyed (2407) 2407 Prototype IDs (30) 600 Alien Tech Used (0) 0 Bonus (1657) 1657 TOTAL SCORE: 8389 Bonus ------- High Alert Combat Kills 157 Entered Garrisons 200 Used RIF Installer 500 Entered DSFs 500 Aligned with FarCom 300 Cogmind --------- Core Integrity 270/700 Matter 145/300 Energy 150/150 System Corruption 0% Temperature Cool (0) Movement Walking (110) Location -7/DSF Parts ------- > --- POWER (1) -------- Micro Nuclear Core > --- PROPULSION (3) --- Improved Carbon-fiber Leg Improved Carbon-fiber Leg Potential Leg > --- UTILITY (6) ------ Large Storage Unit Machine Analyzer Improved Terrain Scan Processor > --- WEAPON (3) ------- Chainsword Great Axe Great Axe > --- INVENTORY (15) --- Improved Terrain Scanner Improved Assault Rifle Enhanced Autogun Advanced Assault Cannon Heavy Mace Peak State ------------ > --- POWER ------------ Light Deuterium Engine > --- PROPULSION ------- Carbon-fiber Leg VSS Leg Potential Leg > --- UTILITY ---------- Large Storage Unit Trap Scanner Machine Analyzer Visual Processing Unit Improved Terrain Scanner Improved Terrain Scan Processor > --- WEAPON ----------- Great Axe Greatsword > --- INVENTORY -------- Nuclear Core Carbon-fiber Leg Carbon-fiber Leg Improved Carbon-fiber Leg Improved Carbon-fiber Leg Potential Leg Actuator Array Improved Assault Rifle Enhanced Autogun Advanced Assault Cannon Improved Grenade Launcher Heavy Mace Katana Katana Chainsword [Rating: 51] Favorites ----------- Power Improved Ion Engine Engine Improved Ion Engine Power Core Nuclear Core Propulsion Carbon-fiber Leg Treads Light Treads Leg Carbon-fiber Leg Utility Large Storage Unit Device Improved Terrain Scanner Storage Large Storage Unit Processor Improved Terrain Scan Processor Protection Light Armor Plating Weapon Heavy Particle Gun Energy Gun Heavy Particle Gun Ballistic Gun Improved Assault Rifle Ballistic Cannon Advanced Assault Cannon Launcher Improved Grenade Launcher Special Weapon Mining Laser Slashing Weapon Katana Build | -11 -10 -10 -10 -9 -8 -8 -8 -7 -7 ------- Run | Scr Mat Min Exi Min Mat Gar Mat Fac DSF Slots Evolved 6 | . . . . . 4 . . 2 . Power . | . . . . . . . . . . Propulsion 1 | . . . . . 1 . . . . Utility 4 | . . . . . 2 . . 2 . Weapon 1 | . . . . . 1 . . . . Parts Attached 149 | 8 14 . 4 . 61 26 11 5 20 Power 9 | 1 2 . . . 2 1 . . 3 Engine 6 | 1 2 . . . 1 1 . . 1 Core 3 | . . . . . 1 . . . 2 Reactor . | . . . . . . . . . . Propulsion 22 | 2 . . 2 . 3 5 3 . 7 Treads 2 | 2 . . . . . . . . . Leg 20 | . . . 2 . 3 5 3 . 7 Wheel . | . . . . . . . . . . Hover . | . . . . . . . . . . Flight . | . . . . . . . . . . Utility 53 | 2 7 . . . 27 7 3 4 3 Device 30 | 1 4 . . . 12 5 2 3 3 Storage 2 | 1 1 . . . . . . . . Processor 6 | . . . . . 4 . 1 1 . Hackware . | . . . . . . . . . . Protection 15 | . 2 . . . 11 2 . . . Artifact . | . . . . . . . . . . Weapon 65 | 3 5 . 2 . 29 13 5 1 7 Energy Gun 16 | 2 4 . 1 . 7 2 . . . Energy Cannon . | . . . . . . . . . . Ballistic Gun 17 | 1 . . 1 . 7 5 3 . . Ballistic Cannon 5 | . 1 . . . 3 1 . . . Launcher 8 | . . . . . 1 5 1 . 1 Special Weapon 6 | . . . . . 6 . . . . Impact Weapon . | . . . . . . . . . . Slashing Weapon 13 | . . . . . 5 . 1 1 6 Piercing Weapon . | . . . . . . . . . . Special Melee Weapon . | . . . . . . . . . . Unidentified Prototypes 6 | . . . . . 5 . 1 . . Parts Lost 17 | . 1 . . . . 2 1 . 13 Power 3 | . 1 . . . . . . . 2 Propulsion 7 | . . . . . . 1 1 . 5 Utility 4 | . . . . . . 1 . . 3 Weapon 3 | . . . . . . . . . 3 Highest Loss Streak 13 | . 1 . . . . 2 1 . 13 To Critical Strikes . | . . . . . . . . . . Average Slot Usage (%) 95 | . 99 100 71 100 98 97 99 100 85 Engine 7 | . 14 14 14 14 3 7 9 7 4 Core 2 | . . . . . 5 1 . . 2 Treads 6 | . 28 28 20 . . . . . . Leg 19 | . . . 7 28 25 27 27 23 21 Device 11 | . 13 14 14 14 7 15 16 15 12 Storage 10 | . 14 14 14 14 9 9 9 7 7 Processor 11 | . . . . . 17 9 11 23 19 Energy Gun 12 | . 13 14 . 14 17 17 10 7 . Ballistic Gun 6 | . 14 14 . 14 5 6 15 7 . Slashing Weapon 2 | . . . . . 1 . . 7 16 Naked Turns . | . . . . . . . . . . Heaviest Build 45 | 12 32 30 30 30 41 42 39 38 45 Greatest Support 66 | 40 40 40 60 60 60 58 45 45 66 Greatest Overweight (x) 1 | . . . . . . . 1 . . Average Overweight (x) . | . . . . . . . . . . Largest Inventory Capacity 15 | 8 15 15 15 15 15 15 15 15 15 Average Capacity 14 | 7 13 15 15 15 15 15 15 15 15 Most Carried 15 | 5 15 15 15 12 15 15 15 15 15 Average Carried 12 | 2 8 15 14 11 14 13 13 13 12 Final Capacity 15 | 8 15 15 15 15 15 15 15 15 15 Final Carried 15 | 2 15 15 11 12 15 13 14 15 5 Class Distribution -------------------- 38% | Mutant 31% | Skirmisher 13% | Assassin 8% | Scavenger-Skirmisher 5% | Scavenger-Assassin 3% | Scavenger-Gladiator Dominant Class ---------------- Mutant | -10/Materials Mutant | -10/Mines Mutant | -10/Exiles Skirmisher | -9/Mines Skirmisher | -8/Materials Skirmisher | -8/Garrison Skirmisher | -8/Materials Scavenger-Assassin | -7/Factory Scavenger-Gladiator | -7/DSF Resources | -11 -10 -10 -10 -9 -8 -8 -8 -7 -7 ----------- Run | Scr Mat Min Exi Min Mat Gar Mat Fac DSF Matter Collected 2187 | 319 211 . . 16 858 463 93 61 166 Remotely . | . . . . . . . . . . Salvage Created 2875 | 196 359 . . 16 1111 554 229 61 349 Parts 192 | 15 37 . . 2 63 37 16 3 19 Haulers Intercepted 7 | . 1 . . . 5 . . . 1 Recyclers Shooed 4 | . 1 . . 1 1 . . 1 . Parts Field Recycled . | . . . . . . . . . . Retrieved Matter . | . . . . . . . . . . Parts Self-Destructed . | . . . . . . . . . . Prevented . | . . . . . . . . . . Kills | -11 -10 -10 -10 -9 -8 -8 -8 -7 -7 ------- Run | Scr Mat Min Exi Min Mat Gar Mat Fac DSF Combat Hostiles Destroyed 55 | . 10 . . . 14 22 3 . 6 Melee 5 | . . . . . . . . . 5 Guns 24 | . 8 . . . 9 6 1 . . Cannons 4 | . 2 . . . 2 . . . . AOE 21 | . . . . . 2 16 2 . 1 Classes Destroyed 13 | 2 5 . . 1 3 1 . . 1 Worker 1 | . 1 . . . . . . . . Builder 4 | . . . . 1 2 . 1 . . Tunneler 9 | 5 1 . . . 2 . 1 . . Hauler 7 | . 1 . . . 5 . . . 1 Recycler 4 | 1 . . . . 1 . 1 1 . Operator 1 | . . . . . 1 . . . . Watcher 4 | . 1 . . . 2 . 1 . . Swarmer 13 | . 6 . . . . 7 . . . Grunt 24 | . 4 . . . 8 8 2 . 2 Duelist 4 | . . . . . . 4 . . . Sentry 8 | . . . . . 5 2 1 . . Specialist 4 | . . . . . . . . . 4 Hunter 2 | . . . . . 1 1 . . . Best Kill Streak 7 | 5 3 . . 1 5 7 5 1 4 Combat Bots Only 7 | . 3 . . . 3 7 2 . 3 Max Kills in Single Turn 3 | 1 2 . . 1 3 3 3 1 1 Gunslinging 1 | . 1 . . . . 1 . . . Exploded 3 | . . . . . 2 3 2 . 1 Melee 1 | . . . . . . . . . 1 Uniques/NPCs Destroyed . | . . . . . . . . . . Combat | -11 -10 -10 -10 -9 -8 -8 -8 -7 -7 -------- Run | Scr Mat Min Exi Min Mat Gar Mat Fac DSF Damage Taken 3555 | . 127 . . . 509 614 105 . 2200 Core 565 | . 17 . . . 76 27 15 . 430 Absorbed by Shields . | . . . . . . . . . . Redirected to Shielding 93 | . . . . . 60 33 . . . Core Remaining (%) 90 | 100 . . . 93 . . 78 . . Volleys Fired 158 | 13 20 . . 2 84 23 14 . 2 Largest 3 | 2 2 . . 2 3 3 3 . 1 Hottest 158 | 60 60 . . 70 158 158 103 . 36 Shots Fired 350 | 26 39 . . 4 198 44 37 . 2 Gun 292 | 26 33 . . 4 165 29 35 . . Cannon 20 | . 6 . . . 12 2 . . . Launcher 19 | . . . . . 2 13 2 . 2 Special 19 | . . . . . 19 . . . . Kinetic 131 | 13 25 . . 2 59 9 23 . . Thermal 196 | 13 10 . . 2 137 22 12 . . Explosive 19 | . . . . . 2 13 2 . 2 Electromagnetic 4 | . 4 . . . . . . . . Robot Hit Streak 9 | 6 7 . . 5 9 9 7 . . Robot Miss Streak 4 | 3 2 . . 1 4 1 4 . . Penetration Max . | . . . . . . . . . . Secondary Targets 5 | . 3 . . . . 2 . . . Max Gunslinging Chain 2 | . 1 . . . . 2 . . . Shots Hit Robots 227 | 17 26 . . 3 102 27 23 2 27 Core Hits 134 | 7 18 . . 2 43 39 13 1 11 Critical Kills . | . . . . . . . . . . Critical Parts Destroyed . | . . . . . . . . . . Critical Strikes 11 | . . . . . 5 . . . 6 Burn 5 | . . . . . 5 . . . . Sever 6 | . . . . . . . . . 6 Melee Attacks 74 | . . . . . 12 . 1 4 57 Impact . | . . . . . . . . . . Slashing 74 | . . . . . 12 . 1 4 57 Piercing . | . . . . . . . . . . Sneak Attacks 3 | . . . . . . . . 2 1 Combat Hostiles 1 | . . . . . . . . . 1 Follow-up Attacks 6 | . . . . . . . . . 6 Damage Inflicted 7080 | 192 365 . . 41 2283 2045 724 129 1301 Guns 3054 | 192 274 . . 41 1802 362 383 . . Cannons 298 | . 91 . . . 182 25 . . . Explosions 2559 | . . . . . 283 1658 341 . 277 Melee 1153 | . . . . . . . . 129 1024 Ramming 16 | . . . . . 16 . . . . Kinetic 1360 | 85 257 . . 29 607 108 274 . . Thermal 2162 | 107 69 . . 12 1586 279 109 . . Explosive 2350 | . . . . . 74 1658 341 . 277 Electromagnetic 39 | . 39 . . . . . . . . Impact . | . . . . . . . . . . Slashing 1153 | . . . . . . . . 129 1024 Piercing . | . . . . . . . . . . Highest Corruption 3 | . 2 2 2 2 3 3 3 . . Average Corruption 2 | . 2 2 2 2 2 3 3 . . Corruption Purged . | . . . . . . . . . . Corruption Blocked . | . . . . . . . . . . Effects 32 | . 4 2 3 . 10 6 7 . . Message Errors 8 | . 2 2 . . 2 1 1 . . Matter Fused 7 | . . . 1 . 3 1 2 . . Heat Flow Errors 3 | . 1 . . . 1 . 1 . . Energy Discharges 5 | . . . 1 . . 2 2 . . Data Loss (minor) 4 | . . . 1 . 1 2 . . . Data Loss (major) 1 | . . . . . 1 . . . . Misfires 2 | . . . . . 2 . . . . Weapon Failures 2 | . 1 . . . . . 1 . . Overload Shots . | . . . . . . . . . . Overflow Damage 122 | . . . . . 31 7 25 31 28 Projectiles . | . . . . . . . . . . Explosions 63 | . . . . . 31 7 25 . . Melee 59 | . . . . . . . . 31 28 Knockbacks 6 | . 1 . . . 4 1 . . . Impact . | . . . . . . . . . . Kinetic 5 | . 1 . . . 3 1 . . . Secondary 1 | . . . . . 1 . . . . Self-Inflicted Damage 144 | . . . . . . 144 . . . Shots 5 | . . . . . . 5 . . . Rammed 2 | . 2 . . . . . . . . Targets Rammed 4 | . 2 . . . 2 . . . . Kicked 2 | . . . . . 2 . . . . Crushed . | . . . . . . . . . . Highest Temperature 356 | . 235 . . 18 356 78 79 . . Average Temperature 78 | . 51 . . 10 90 31 28 . . Received Heat Transfer 522 | . 45 . . . 171 99 36 . 171 Siege Activations . | . . . . . . . . . . Robots Corrupted . | . . . . . . . . . . Combat Hostiles . | . . . . . . . . . . Parts Fried . | . . . . . . . . . . Impact Corruptions . | . . . . . . . . . . Robots Melted 1 | . . . . . 1 . . . . Combat Hostiles 1 | . . . . . 1 . . . . Parts Melted 3 | . . . . . 3 . . . . Heat Transferred 4337 | 250 150 . . 37 3160 518 222 . . Parts Sabotaged . | . . . . . . . . . . Parts Stolen . | . . . . . . . . . . Parts Stripped . | . . . . . . . . . . Power Chain Reactions . | . . . . . . . . . . Missiles Intercepted . | . . . . . . . . . . Alert | -11 -10 -10 -10 -9 -8 -8 -8 -7 -7 ------- Run | Scr Mat Min Exi Min Mat Gar Mat Fac DSF Peak Influence 760 | 30 189 2 . 5 204 760 526 189 199 Initial 370 | . 19 2 . . 1 132 370 170 132 Average 171 | 10 65 2 . 1 80 511 437 178 156 Maximum Alert Level 3 | . . . . . 1 3 2 . . Low Security (%) 77 | 100 100 100 . 100 96 4 . 100 100 Level 1 5 | . . . . . 3 10 28 . . Level 2 14 | . . . . . . 65 71 . . Level 3 2 | . . . . . . 19 . . . Level 4 . | . . . . . . . . . . Level 5 . | . . . . . . . . . . High Security . | . . . . . . . . . . Max Security . | . . . . . . . . . . Squads Dispatched 6 | . 1 . . . 2 . . 1 2 Investigation 1 | . . . . . . . . 1 . Extermination . | . . . . . . . . . . Reinforcement 5 | . 1 . . . 2 . . . 2 Assault . | . . . . . . . . . . Garrison . | . . . . . . . . . . Intercept . | . . . . . . . . . . Searches Triggered . | . . . . . . . . . . Construction Impeded . | . . . . . . . . . . Haulers Reinforced . | . . . . . . . . . . Active Scanning Responses . | . . . . . . . . . . Cargo Convoy Interrupts . | . . . . . . . . . . Stealth | -11 -10 -10 -10 -9 -8 -8 -8 -7 -7 --------- Run | Scr Mat Min Exi Min Mat Gar Mat Fac DSF Distress Signals 6 | . 1 . . . 4 . 1 . . Communications Jammed . | . . . . . . . . . . Distress Signals . | . . . . . . . . . . Times Spotted 70 | . 13 . . . 22 16 7 . 12 Peak Tracking Total 7 | . 5 . . . 4 5 4 . 7 Tactical Retreats 2 | . . . . . . . . . 2 Traps | -11 -10 -10 -10 -9 -8 -8 -8 -7 -7 ------- Run | Scr Mat Min Exi Min Mat Gar Mat Fac DSF Traps Triggered 8 | . 1 . . . 2 5 . . . Indirectly . | . . . . . . . . . . Trap Hack Attempts . | . . . . . . . . . . Triggered . | . . . . . . . . . . Disarmed . | . . . . . . . . . . Reprogrammed . | . . . . . . . . . . Reused . | . . . . . . . . . . Traps Extracted . | . . . . . . . . . . Installed . | . . . . . . . . . . Triggered . | . . . . . . . . . . Machines | -11 -10 -10 -10 -9 -8 -8 -8 -7 -7 ---------- Run | Scr Mat Min Exi Min Mat Gar Mat Fac DSF Machines Disabled 5 | . . . . . 4 . 1 . . Max in Single Turn 3 | . . . . . 3 . 1 . . Machines Sabotaged . | . . . . . . . . . . Garrisons Compromised . | . . . . . . . . . . Overloaded Fab Kills . | . . . . . . . . . . Hacking | -11 -10 -10 -10 -9 -8 -8 -8 -7 -7 --------- Run | Scr Mat Min Exi Min Mat Gar Mat Fac DSF Machines Accessed 20 | . 3 . 1 . 10 . 3 3 . Terminals 17 | . 3 . . . 8 . 3 3 . Fabricators . | . . . . . . . . . . Repair Stations . | . . . . . . . . . . Recycling Units 1 | . . . . . 1 . . . . Scanalyzers . | . . . . . . . . . . Garrison Access 1 | . . . . . 1 . . . . Total Hacks 72 | . 12 . 1 . 35 . 13 11 . Successful 45 | . 9 . 1 . 26 . 6 3 . Failed 25 | . 2 . . . 8 . 7 8 . Catastrophic 2 | . . . . . 1 . 1 . . Database Lockouts 2 | . 1 . . . 1 . . . . Manual 51 | . 11 . 1 . 24 . 12 3 . Terminals 67 | . 12 . . . 31 . 13 11 . Fabricators . | . . . . . . . . . . Repair Stations . | . . . . . . . . . . Recycling Units 2 | . . . . . 2 . . . . Scanalyzers . | . . . . . . . . . . Garrison Access 2 | . . . . . 2 . . . . Terminal Hacks 27 | . 6 . 1 . 15 . 3 2 . Robot Analysis 6 | . 3 . . . 3 . . . . Prototype ID Bank 1 | . . . . . 1 . . . . Open DSF 1 | . . . . . . . . 1 . Branch Access Points 1 | . . . . . 1 . . . . Terminal Index 3 | . 1 . . . 1 . 1 . . Unreport Threat 4 | . 1 . . . 2 . 1 . . Locate Traps 2 | . . . . . 2 . . . . Registered Components 2 | . . . . . 1 . . 1 . Zone Layout 6 | . 1 . . . 4 . 1 . . EX-Prototype ID Bank 1 | . . . 1 . . . . . . Fabricator Hacks . | . . . . . . . . . . Repair Station Hacks . | . . . . . . . . . . Recycling Unit Hacks . | . . . . . . . . . . Scanalyzer . | . . . . . . . . . . Garrison Access Hacks 1 | . . . . . 1 . . . . Unlock Access 1 | . . . . . 1 . . . . Unauthorized Hacks 17 | . 3 . . . 10 . 3 1 . Terminals 15 | . 3 . . . 8 . 3 1 . Track 5 | . 1 . . . 4 . . . . Botnet 7 | . 1 . . . 3 . 2 1 . Operators 3 | . 1 . . . 1 . 1 . . Fabricators . | . . . . . . . . . . Repair Stations . | . . . . . . . . . . Recycling Units 2 | . . . . . 2 . . . . Reject 1 | . . . . . 1 . . . . Recyclers 1 | . . . . . 1 . . . . Scanalyzers . | . . . . . . . . . . Garrison Access . | . . . . . . . . . . Data Cores Recovered . | . . . . . . . . . . Used . | . . . . . . . . . . Hacking Detections 18 | . 3 . . . 10 . 3 2 . Full Trace Events 1 | . . . . . . . . 1 . Feedback Events . | . . . . . . . . . . Feedback Blocked . | . . . . . . . . . . Robot Schematics Acquired . | . . . . . . . . . . Robots Built . | . . . . . . . . . . Authchips . | . . . . . . . . . . Time . | . . . . . . . . . . Total Robot Build Rating . | . . . . . . . . . . Part Schematics Acquired . | . . . . . . . . . . Parts Built . | . . . . . . . . . . Authchips . | . . . . . . . . . . Time . | . . . . . . . . . . Total Part Build Rating . | . . . . . . . . . . Parts Repaired . | . . . . . . . . . . Time . | . . . . . . . . . . Parts Recycled . | . . . . . . . . . . Recycled Matter . | . . . . . . . . . . Retrieved Matter . | . . . . . . . . . . Retrieved Components . | . . . . . . . . . . Parts Scanalyzed . | . . . . . . . . . . Part Schematics Acquired . | . . . . . . . . . . Parts Damaged . | . . . . . . . . . . Bothacking | -11 -10 -10 -10 -9 -8 -8 -8 -7 -7 ------------ Run | Scr Mat Min Exi Min Mat Gar Mat Fac DSF Used RIF Installer 1 | . . . . . . 1 . . . Robots Hacked . | . . . . . . . . . . Non-combat . | . . . . . . . . . . Combat . | . . . . . . . . . . Robot Hacks Applied . | . . . . . . . . . . Relay Couplers Released . | . . . . . . . . . . Fabnet Peak Effective % . | . . . . . . . . . . Robots Rewired . | . . . . . . . . . . Allies Hacked . | . . . . . . . . . . Hacks Repelled . | . . . . . . . . . . Allies | -11 -10 -10 -10 -9 -8 -8 -8 -7 -7 -------- Run | Scr Mat Min Exi Min Mat Gar Mat Fac DSF Total Allies . | . . . . . . . . . . Largest Group . | . . . . . . . . . . Highest-Rated Group . | . . . . . . . . . . Highest-Rated Ally . | . . . . . . . . . . Total Orders . | . . . . . . . . . . Ally Attacks . | . . . . . . . . . . Total Damage . | . . . . . . . . . . Kills . | . . . . . . . . . . Allies Corrupted . | . . . . . . . . . . Allies Melted . | . . . . . . . . . . Intel | -11 -10 -10 -10 -9 -8 -8 -8 -7 -7 ------- Run | Scr Mat Min Exi Min Mat Gar Mat Fac DSF Robot Analysis Total 6 | . 3 . . . 3 . . . . Derelict Logs Recovered . | . . . . . . . . . . Drone Launches . | . . . . . . . . . . Drone Recoveries . | . . . . . . . . . . Exploration | -11 -10 -10 -10 -9 -8 -8 -8 -7 -7 ------------- Run | Scr Mat Min Exi Min Mat Gar Mat Fac DSF Turns Passed 3576 | 87 502 71 324 44 1419 434 270 140 285 Spaces Moved 2294 | 33 249 45 238 42 962 297 182 114 132 Core 18 | 18 . . . . . . . . . Treads 453 | 15 249 45 144 . . . . . . Legs 1823 | . . . 94 42 962 297 182 114 132 Wheels . | . . . . . . . . . . Hover . | . . . . . . . . . . Flight . | . . . . . . . . . . Fastest Speed 50 | 50 160 160 90 90 90 105 105 105 60 Average Speed 112 | 100 160 160 132 90 101 105 115 105 87 Slowest Speed 190 | 160 160 160 160 90 105 120 190 105 110 Overloaded Moves 27 | . . . . . . . . . 27 Propulsion Burnouts . | . . . . . . . . . . Robots Hopped . | . . . . . . . . . . Cave-ins Triggered . | . . . . . . . . . . Exploration Rate (%) 38 | 4 46 15 65 12 82 58 24 5 73 Regions Visited 9 Branch Regions 3 Pre-discovered Areas . | . . . . . . . . . . Known Exits Taken 2 | . . . . . 1 . . 1 . Unknown Exits Taken 6 | 1 1 1 1 1 . . 1 . . Scrap Searched . | . . . . . . . . . . Spaces Dug 47 | . . . . . 34 . 1 2 10 Terrain Destroyed 160 | . . . . . 50 75 11 2 22 Melee 24 | . . . . . 11 . 1 2 10 Projectile 26 | . . . . . 25 1 . . . AOE 110 | . . . . . 14 74 10 . 12 Terrain Rammed . | . . . . . . . . . . Walls Destroyed . | . . . . . . . . . . Machines Disabled . | . . . . . . . . . . Actions | -11 -10 -10 -10 -9 -8 -8 -8 -7 -7 --------- Run | Scr Mat Min Exi Min Mat Gar Mat Fac DSF Total 2830 | 60 309 44 250 44 1186 374 213 129 221 Wait 21 | 1 2 . . . 13 . 2 . 3 Move 2284 | 32 248 44 237 41 961 295 181 113 132 Hop . | . . . . . . . . . . Pick Up 58 | 5 16 . 1 1 21 2 2 3 7 Fast Attach 26 | 4 1 . 1 . 12 3 1 1 3 Attach 41 | 4 2 . 3 . 7 7 2 4 12 Detach 16 | 1 1 . 2 . 5 3 1 2 1 Swap 82 | . 11 . . . 42 16 8 . 5 Drop 58 | . 6 . 6 . 27 6 1 2 10 Fire 158 | 13 20 . . 2 84 23 14 . 2 Melee 63 | . . . . . 12 . 1 4 46 Ram . | . . . . . . . . . . Kick 2 | . . . . . 2 . . . . Crush 2 | . 2 . . . . . . . . Escape Stasis 19 | . . . . . . 19 . . . Rewire . | . . . . . . . . . . Trap . | . . . . . . . . . . Miscellaneous . | . . . . . . . . . . Route ------- -11/Scrapyard -10/Materials (discovered 2 exits: [*Mat] / [*Min]) -10/Mines -10/Exiles (discovered 2 exits: [*Min x2]) -9/Mines -8/Materials (discovered 4 exits: *Fac x3 / Gar) -8/Garrison (discovered 3 exits: *Mat x3) -8/Materials -7/Factory (discovered 2 exits: [*Sto] / DSF) -7/DSF (discovered 1 exit: [*Fac]) History --------- Turn | Location | Event 18 | -11/Scrapyard | Discovered new exit (range 13) 88 | -11/Scrapyard | Entered Materials 295 | -10/Materials | Discovered new exit (range 16) 334 | -10/Materials | Build established: Mutant 347 | -10/Materials | Central database locked down 492 | -10/Materials | Discovered new exit (range 12) 590 | -10/Materials | Entered Mines 638 | -10/Mines | Assembled infested the area 643 | -10/Mines | Assisted by a Guerilla fighting off Assembled 654 | -10/Mines | Deemed a non-threat by the Exiles lab entrance 654 | -10/Mines | Discovered new exit (range 5) 661 | -10/Mines | Entered Exiles 684 | -10/Exiles | Discovered new exit (range 15) 703 | -10/Exiles | Met 8R-AWN 726 | -10/Exiles | Met EX-HEX 827 | -10/Exiles | Met EX-BIN 844 | -10/Exiles | Aligned with FarCom system 846 | -10/Exiles | Given EX-Vault access code 883 | -10/Exiles | Opened EX-Vault 893 | -10/Exiles | Found Potential Leg 896 | -10/Exiles | Found Potential Leg 917 | -10/Exiles | Warned to stay clear of 0b10 Research branches 943 | -10/Exiles | Met EX-DEC 976 | -10/Exiles | Discovered new exit (range 10) 985 | -10/Exiles | Left Exiles lab with Potential Leg 985 | -10/Exiles | Entered Mines 1005 | -9/Mines | Discovered new exit (range 6) 1029 | -9/Mines | Entered Materials 1029 | -8/Materials | Evolved 4 slots: Propulsion x1, Utility x2, Weapon x1 1098 | -8/Materials | Central database locked down 1417 | -8/Materials | Discovered new exit (range 7) 1631 | -8/Materials | Discovered new exit (range 13) 1742 | -8/Materials | Discovered new exit (range 13) 2447 | -8/Materials | Identified exit to Garrison 2448 | -8/Materials | Entered Garrison 2506 | -8/Garrison | Triggered checkpoint 2566 | -8/Garrison | Triggered checkpoint 2627 | -8/Garrison | Discovered new exit (range 10) 2682 | -8/Garrison | Triggered checkpoint 2726 | -8/Garrison | Discovered new exit (range 15) 2778 | -8/Garrison | Triggered checkpoint 2791 | -8/Garrison | Triggered checkpoint 2832 | -8/Garrison | Destroyed 7 combat bots 2862 | -8/Garrison | Discovered new exit (range 10) 2877 | -8/Garrison | Installed Relay Interface Framework 2882 | -8/Garrison | Entered Materials 3002 | -8/Materials | Discovered new exit (range 10) 3152 | -8/Materials | Entered Factory 3152 | -7/Factory | Evolved 2 slots: Utility x2 3199 | -7/Factory | Discovered new exit (range 10) 3285 | -7/Factory | Identified exit to DSF 3292 | -7/Factory | Entered DSF 3359 | -7/DSF | Additional patrols routed to DSF 3429 | -7/DSF | Discovered new exit (range 18) 3552 | -7/DSF | Core integrity fell below 50% 3577 | -7/DSF | Self-destructed Last Messages --------------- 03522_ A-02 Transporter destroyed. 03524_ Imp. Grenade Launcher destroyed. 03525_ Great Axe destroyed. 03529_ Acquired 69 matter. 03541_ G-47 Trooper Aluminum Leg severed. 03541_ Carbon-fiber Leg destroyed. 03543_ Great Axe follow-up attack on G-47 Trooper. 03543_ G-47 Trooper destroyed. 03543_ Chainsword follow-up attack on G-47 Trooper. 03543_ Destroyed Lgt. Nuclear Core. 03549_ G-47 Trooper Particle Gun severed. 03551_ The unstable cave ceiling collapses. 03555_ Trap Scanner destroyed. 03555_ X-57 Shotgunner destroyed. 03556_ Acquired 40 matter. 03556_ Potential Leg destroyed. 03566_ Destroyed Particle Gun. 03566_ G-47 Trooper destroyed. 03572_ X-57 Shotgunner Hrd. Medium Armor Plating severed. 03574_ Chainsword follow-up attack on X-57 Shotgunner. Map ----- +----------------------------------------------------+ | ??????????????????# =="######"## ^##???????# | | ??????????????????# ==##????##== =##??????? | | ??????????????????# ==##?#???#== =#???????? | | ??????????????????### ##"#?????### ##???????? | | ??????????????????#** !!##?????#== #???????? | | ??????????????????#** !!#?#?#??#== #??#??##? | | ??????????????????#** !!##?###?#== #?????#?? | | ??????????????????### ##"###"###"# ###??????? | | ???????????????????## ###***# ## !!#??????? | | ??????????????????## ##***" ## !!#??#???? | | ???????????????? ? !!#???##?? | | ????????????????g H !!#?????#? | | ?????????????? ? !!#?????#? | | ??????????????#!!!## ##!!!# ## #??????? | | ????????????? #!!!?## #?#!!!# ## #??????? | | ?????????????####?### #?########## ###??????? | | ?????????????????##!! !?###???## #???####? | | ?????????? ??#?? ?#!! b !??#???### ##????#?? | | ?????????? #?? ??##!! ! ?#?#?### #??#????? | | ??????????????????### ###?????#"## ##?#?#?#?? | | ?????????? ????? ?# //#?##?### *#?????#?? | | ??????????????#???# //#??##### *#????#??? | | ??????????#?###???# // ####"##"## ###??????? | | ???????????? ]]]## ##" [ #*C### ##?#?????? | | ??????????## ]]] # ![##! !#**## ""#???#??? | | ??????? = *x@!==%! """""#???? | | ???????< % [=* % %=![=*= ""##"????? | | ????????""## # =%# = [[# **#**##"""""#?????#? | | ????????????#### # [[#########""""?#??????? | | ???????????#??##############??????##"###????#??? | | ?????????????###?????##????#??#??###"#??#???#?#? | | ????????????????###?????????#?#???#?"????#?????? | | ???????????????#??#????#??#???##?##?#??#?????#?? | | ???????????????#?????#?#?????#?#?#?#?????#?????? | | ?????????????#???????#?#??#??#??#???#??#???????? | | ????????????????????????#??#?#?###?????????????? | | ?????????????????????#???#?????????????????????? | | | | | | | | | | | | | | | | | | | | | | | | | | | +----------------------------------------------------+ Best States ------------- Heat Dissipation 45 Energy Generation 15 Energy Capacity 265 Matter Stores 300 Matter Capacity 300 Sight Range 20 Terrain Scan Range 16 Terrain Scan Density 110 Armor Coverage 300 Propulsion Shielding 66 Evasion (%) 63 Recoil Reduction 2 Item Schematics ----------------- None Robot Schematics ------------------ None Fabricated ------------ Nothing Alien Tech Used ----------------- None Achievements -------------- None Challenges ------------ None Game ------ Seed DerelictMiningPurifier Manual? 0 Play Time 01:04:33 Cumulative 598.1 hours Start 2022.04.18 @ 00:25:30 End 2022.04.18 @ 15:53:05 Sessions 3 Manual Loads 0 Difficulty Rogue Special Mode None Game No. 301 Rogue 174 Adventurer 125 Explorer 2 Win Type - Total 57 Types 49/3/2/1/1/0/0/0/1 Lore% 73 Gallery% 86 Achievement% 70 Wizard Run 0 Options --------- ASCII 0 Keyboard 1 Movement Numpad Keybinds 0 Fullscreen 1 Font 36/TerminusFine Map View 76x50 Tactical HUD 1 Map Filters NONE Filters NONE Steam 1 RUN: ec2563c5-0a30-4cfb-b7ee-0e3cf93fc2bb